[Event "Czech Youth U14 Boys 2024"]
[Site "Kouty nad Desnou"]
[Date "2024.03.10"]
[Round "2.4"]
[White "Vana, Jan"]
[Black "Soucek, Andrej"]
[Result "0-1"]
[ECO "C77"]
[WhiteElo "1908"]
[BlackElo "1825"]
[Annotator "RC"]
[PlyCount "92"]
[EventDate "2024.03.10"]
[EventType "swiss"]
[EventCountry "CZE"]
[SourceTitle "playchess.com"]
[Source "ChessBase"]
[SourceQuality "1"]
[TimeControl "40/5400+30:1800+30"]

1. e4 {[%emt 0:00:02]} e5 {[%emt 0:00:08]} 2. Nf3 {[%emt 0:00:04]} Nc6 {[%emt 0:00:12]} 3. Bb5 {[%emt 0:00:04]} a6 {[%emt 0:00:10]} 4. Ba4 {[%emt 0:00:06]} Nf6 {[%emt 0:00:27]} 5. d3 {[%emt 0:00:39]} b5 {[%emt 0:00:40]} 6. Bb3 {[%emt 0:00:04]} Bc5 {[%emt 0:01:00]} 7. Nc3 {[%emt 0:02:24]} d6 {[%emt 0:01:42]} 8. Nd5 {[%emt 0:03:12]} h6 {[%emt 0:06:27]} 9. c3 {[%emt 0:10:24]} O-O {[%emt 0:07:23]} 10. O-O {[%emt 0:07:58]} Ba7 {[%emt 0:15:53]} 11. Be3 {[%emt 0:07:06]} Na5 {[%emt 0:16:50]} 12. Nxf6+ {[%emt 0:05:10]} Qxf6 {[%emt 0:00:10]} 13. Bc2 {[%emt 0:01:50]} Nc6 {[%emt 0:05:23]} 14. Bxa7 {[%emt 0:20:43]} Rxa7 {[%emt 0:00:16]} 15. h3 {[%emt 0:08:58]} Ne7 {[%emt 0:13:00]} 16. Kh2 {[%emt 0:11:48]} g5 {[%emt 0:04:20]} 17. Ng1 {[%emt 0:02:19]} Kh7 {[%emt 0:05:51]} 18. Qf3 {[%emt 0:04:51]} Qg6 {[%emt 0:01:03]} 19. g4 {[%emt 0:00:51]} Qg7 {[%emt 0:03:01]} 20. a4 {[%emt 0:01:10]} Rb7 {[%emt 0:02:21]} 21. axb5 {[%emt 0:01:30]} axb5 {[%emt 0:00:37]} 22. b4 {[%emt 0:01:20]} Ng6 {[%emt 0:00:50]} 23. Ra5 {[%emt 0:02:16]} Nh4 {[%emt 0:06:26]} 24. Qe3 {[%emt 0:02:09]} Qf6 {[%emt 0:00:50]} 25. Rfa1 {[%emt 0:01:51]} h5 {[%emt 0:01:54]} 26. Bd1 {[%emt 0:03:05]} hxg4 {[%emt 0:00:51]} 27. Bxg4 {[%emt 0:00:44]} Bxg4 {[%emt 0:00:04]} 28. hxg4 {[%emt 0:00:05]} Kg6 {[%emt 0:01:14]} 29. Ra8 {[%emt 0:01:39]} Rbb8 {[%emt 0:00:47]} 30. Rxb8 {[%emt 0:00:22]} Rxb8 {[%emt 0:00:09]} 31. f3 {[%emt 0:00:39]} Qf4+ {[%emt 0:04:54]} 32. Qxf4 {[%emt 0:00:07]} gxf4 {[%emt 0:00:07]} 33. Ra7 {[%emt 0:00:31]} Rh8 {[%emt 0:00:20]} 34. Rxc7 {[%emt 0:00:52]} Nxf3+ {[%emt 0:00:20]} 35. Kg2 {[%emt 0:00:06]} Nxg1 {[%emt 0:01:40]} 36. Kxg1 {[%emt 0:00:03]} Kg5 {[%emt 0:00:33]} 37. Rxf7 {[%emt 0:01:25]} Kxg4 {[%emt 0:00:05]} 38. Rf6 {[%emt 0:00:30]} Kf3 {[%emt 0:00:31]} 39. Rxd6 {[%emt 0:00:29]} Ke2 {[%emt 0:00:48]} 40. d4 {[%emt 0:00:24]} f3 {[%emt 0:00:38]} 41. Rf6 {[%emt 0:04:22]} Rg8+ {[%emt 0:00:07]} 42. Kh2 {[%emt 0:00:19]} f2 {[%emt 0:00:12]} 43. dxe5 {[%emt 0:01:14]} f1=Q {[%emt 0:00:06]} 44. Rxf1 {[%emt 0:00:05]} Kxf1 {[%emt 0:00:06]} 45. e6 {[%emt 0:00:33]} Kf2 {[%emt 0:00:06]} 46. Kh3 {[%emt 0:00:05]} Kf3 {[%emt 0:00:05]} 0-1

[Event "Czech Youth U14 Boys 2024"]
[Site "Kouty nad Desnou"]
[Date "2024.03.10"]
[Round "2.5"]
[White "Popov, Roman"]
[Black "Migalko, Dmitriy"]
[Result "1-0"]
[ECO "A13"]
[WhiteElo "2353"]
[BlackElo "1896"]
[Annotator "TA"]
[PlyCount "101"]
[EventDate "2024.03.10"]
[EventType "swiss"]
[EventCountry "CZE"]
[SourceTitle "playchess.com"]
[Source "ChessBase"]
[SourceQuality "1"]
[TimeControl "40/5400+30:1800+30"]

{[%evp 16,101,14,8,19,13,14,8,29,0,0,0,0,-4,0,0,-16,-15,6,-7,0,-101,27,0,59,7,16,0,32,-32,26,-30,79,81,123,115,142,128,252,262,381,112,112,116,122,111,112,126,115,83,119,88,269,260,298,274,335,331,322,318,315,305,313,317,318,324,327,327,327,325,319,278,237,227,463,453,449,439,444,420,429,412,501,495,451,435,566,554]} 1. c4 {[%emt 0:00:07]} e6 {[%emt 0:00:27]} 2. Nf3 {[%emt 0:00:21]} d5 {[%emt 0:00:35]} 3. e3 {[%emt 0:00:30]} Nf6 {[%emt 0:00:50]} 4. Nc3 {[%emt 0:00:37]} Be7 {[%emt 0:01:20]} 5. b3 {[%emt 0:01:20]} Nbd7 {[%emt 0:02:29]} 6. Be2 {[%emt 0:03:27]} O-O {[%emt 0:01:30]} 7. O-O {[%emt 0:01:36]} b6 {[%emt 0:06:13]} 8. Bb2 {[%emt 0:02:56]} Bb7 {[%emt 0:02:53]} 9. d4 {[%emt 0:03:30]} Ne4 {[%emt 0:17:02]} 10. Qc2 {[%emt 0:15:02]} f5 {[%emt 0:05:12]} 11. Rac1 {[%emt 0:04:05]} c6 {[%emt 0:14:58] The position is equal.} 12. Ne1 {[%emt 0:14:57]} Bd6 {[%emt 0:05:41]} 13. g3 {[%emt 0:08:24]} Qg5 {[%emt 0:11:37]} 14. Bf3 {[%emt 0:21:07]} h5 {[%emt 0:06:45]} 15. Ng2 {[%emt 0:03:21]} Qh6 {[%emt 0:04:55]} 16. h4 {[%emt 0:11:53]} Ndf6 {[%emt 0:07:44]} 17. Nf4 {[%emt 0:04:16]} Rae8 {[%emt 0:04:25]} 18. Qe2 {[%emt 0:01:14]} (18. Nxe4 $11 {remains equal.} dxe4 19. Be2) 18... Ng4 {[%emt 0:02:48]} (18... g5 $17 19. hxg5 Nxg5) 19. Kg2 {[%emt 0:00:19]} (19. Nxe4 {simplifies} dxe4 20. Bxg4 hxg4 21. Rfd1) 19... g6 {[%emt 0:01:47]} ({Black should play} 19... Nef6 $11) 20. Rcd1 {[%emt 0:00:45]} ({White should try} 20. cxd5 $14 Nxc3 21. Bxc3 exd5 22. Qd2) 20... Ngf6 {[%emt 0:00:37]} 21. Rc1 {[%emt 0:00:40]} Ba6 {[%emt 0:00:31]} (21... g5 22. hxg5 Nxg5 23. Bxh5 (23. Rh1 Nxf3 24. Qxf3 Bxf4 $15) 23... Nxh5 24. Qxh5 Qxh5 25. Nxh5 $16) 22. Nd1 {[%emt 0:00:32]} (22. Qc2 $14) 22... Bb4 {[%emt 0:00:29]} (22... g5 $6 23. hxg5 Nxg5 24. Rh1 $16) (22... Rf7 $15) 23. Bc3 {[%emt 0:00:27]} ({Better is} 23. Qc2) 23... Bxc3 {[%emt 0:00:40]} (23... Ba3 $11 24. Bb2 Bd6) 24. Nxc3 $16 {[%emt 0:00:02]} Nxc3 {[%emt 0:00:30]} 25. Rxc3 {[%emt 0:00:01] aiming for Qb2.} Ne4 {[%emt 0:00:16]} 26. Rcc1 {[%emt 0:00:23]} e5 {[%emt 0:00:26]} (26... Qg7 $16 27. Rfd1 Kh7) 27. dxe5 $18 {[%emt 0:01:26]} Rxe5 {[%emt 0:00:01]} (27... Qg7 $142 28. Qb2 dxc4) 28. Nd3 $2 {[%emt 0:00:36]} (28. Qb2 $18 Ree8 29. Qa3) 28... Ree8 {[%emt 0:00:15][%cal Od5d4]} 29. Nb4 {[%emt 0:00:31]} Bb7 {[%emt 0:00:51]} 30. cxd5 {[%emt 0:00:31]} cxd5 {[%emt 0:00:10]} 31. Rc7 {[%emt 0:00:27]} Rf7 {[%emt 0:00:21]} 32. Rfc1 {[%emt 0:00:32]} Qf8 {[%emt 0:00:32]} 33. Nd3 $36 {[%emt 0:00:32][%mdl 2048] White has strong initiative. White is more active.} Nc5 $2 {[%emt 0:01:32] This move loses the game for Black.} 34. Rxf7 {[%emt 0:00:22]} Kxf7 {[%emt 0:00:16]} 35. Nxc5 {[%emt 0:00:18]} bxc5 {[%emt 0:00:08]} 36. Qb5 {[%emt 0:00:25][%csl LRb7,LRc5]} Qe7 {[%emt 0:00:48]} 37. Rxc5 {[%emt 0:00:54]} Rd8 {[%emt 0:00:42]} 38. Qa5 {[%emt 0:00:30][%cal Oc5c7] [#] Rc7! is the strong threat.} (38. Bxd5+ $2 {loses.} Bxd5+ 39. Kh2 Qe4 $19) 38... d4 {[%emt 0:00:26] And now ...Bxf3+ would win.} 39. Rc7 {[%emt 0:00:32]} (39. Qxa7 $2 {is the wrong capture.} Bxf3+ 40. Kxf3 Qxa7 $19) 39... Bxf3+ {[%emt 0:00:20]} 40. Kxf3 {[%emt 0:00:02]} Rd7 {[%emt 0:00:27]} 41. Rxd7 {[%emt 0:01:19]} Qxd7 {[%emt 0:00:02]} 42. exd4 {[%emt 0:00:25]} Qxd4 {[%emt 0:00:23][%csl Gf5][%cal Rd4e4][%mdl 4096] [#] Endgame. KQ-KQ} 43. Qc7+ {[%emt 0:02:30]} Kf8 {[%emt 0:01:28][%csl Gf5][%cal Rd4e4]} 44. Qc4 {[%emt 0:02:29]} Qa1 {[%emt 0:01:30]} (44... Qd6 45. b4 Kg7) 45. Qb4+ {[%emt 0:02:35]} Kg7 {[%emt 0:00:30]} 46. Qe7+ {[%emt 0:00:32]} Kg8 {[%emt 0:00:51]} 47. Qd8+ {[%emt 0:01:12]} ({Much less strong is} 47. Qxa7 Qe5 48. Qe3 Qd5+ 49. Ke2 Kh7 $18) 47... Kh7 {[%emt 0:00:19]} 48. Qc7+ {[%emt 0:00:13]} Kh8 {[%emt 0:00:13]} 49. Qb8+ {[%emt 0:00:07] White is clearly winning.} Kg7 {[%emt 0:00:10]} 50. Qxa7+ {[%emt 0:00:07]} Kh8 {[%emt 0:00:06]} 51. Kg2 {[%emt 0:01:19] Weighted Error Value: White=0.26 (precise) /Black=0.43.  Loses game:     	---       	Black=1      Missed win:     	White=1     	---        Mistake:       	White=4     	Black=7      Inaccurate:     	White=2     	Black=4      OK:         	White=18    	Black=14     Best:        	White=3     	Black=2} 1-0

[Event "Czech Youth U14 Boys 2024"]
[Site "Kouty nad Desnou"]
[Date "2024.03.10"]
[Round "2.6"]
[White "Svadlenka, Dominik"]
[Black "Mydlar, Matej"]
[Result "0-1"]
[ECO "E33"]
[WhiteElo "1888"]
[BlackElo "1819"]
[Annotator "NA RC"]
[PlyCount "176"]
[EventDate "2024.03.10"]
[EventType "swiss"]
[EventCountry "CZE"]
[SourceTitle "playchess.com"]
[Source "ChessBase"]
[SourceQuality "1"]
[TimeControl "40/5400+30:1800+30"]

1. d4 {[%emt 0:00:03]} Nf6 {[%emt 0:00:07]} 2. c4 {[%emt 0:00:03]} e6 {[%emt 0:00:07]} 3. Nc3 {[%emt 0:00:03]} Bb4 {[%emt 0:00:06]} 4. Qc2 {[%emt 0:00:03]} Nc6 {[%emt 0:00:05]} 5. Nf3 {[%emt 0:01:07]} d6 {[%emt 0:00:19]} 6. Bg5 {[%emt 0:01:12]} e5 {[%emt 0:09:15]} 7. d5 {[%emt 0:05:52]} Bxc3+ {[%emt 0:01:21]} 8. Qxc3 {[%emt 0:00:54]} Nb8 {[%emt 0:00:16]} 9. e3 {[%emt 0:02:29]} Nbd7 {[%emt 0:02:58]} 10. Be2 {[%emt 0:07:15]} h6 {[%emt 0:06:37]} 11. Bxf6 {[%emt 0:02:31]} Nxf6 {[%emt 0:00:16]} 12. Qc2 {[%emt 0:01:39]} O-O {[%emt 0:00:45]} 13. O-O {[%emt 0:02:05]} a5 {[%emt 0:02:34]} 14. Rfd1 {[%emt 0:07:19]} Nd7 {[%emt 0:04:56]} 15. Bd3 {[%emt 0:15:08]} Nc5 {[%emt 0:02:41]} 16. Bf5 {[%emt 0:04:51]} Bd7 {[%emt 0:01:29]} 17. b3 {[%emt 0:01:56]} b6 {[%emt 0:09:33]} 18. Bxd7 {[%emt 0:02:25]} Qxd7 {[%emt 0:00:14]} 19. a3 {[%emt 0:02:02]} f5 {[%emt 0:01:58]} 20. b4 {[%emt 0:06:03]} Ne4 {[%emt 0:04:20]} 21. Nd2 {[%emt 0:07:24]} Nxd2 {[%emt 0:09:51]} 22. Qxd2 {[%emt 0:00:04]} f4 {[%emt 0:05:06]} 23. f3 {[%emt 0:03:56]} Qa4 {[%emt 0:04:56]} 24. Qc3 {[%emt 0:02:18]} fxe3 {[%emt 0:01:34]} 25. b5 {[%emt 0:06:18]} Rf4 {[%emt 0:08:05]} 26. Rac1 {[%emt 0:00:07]} Raf8 {[%emt 0:03:51]} 27. Re1 {[%emt 0:01:53]} Rd4 {[%emt 0:02:03]} 28. Rxe3 {[%emt 0:04:16]} Rff4 {[%emt 0:01:56]} 29. Re4 {[%emt 0:03:13]} Rfxe4 {[%emt 0:05:29]} 30. fxe4 {[%emt 0:00:03]} Rd1+ {[%emt 0:00:58]} 31. Rxd1 {[%emt 0:01:55]} Qxd1+ {[%emt 0:00:08]} 32. Kf2 {[%emt 0:00:03]} Qg4 {[%emt 0:01:33]} 33. Qe3 {[%emt 0:00:58]} Qd1 {[%emt 0:03:25]} 34. Qc3 {[%emt 0:02:10]} Qb1 {[%emt 0:05:00]} 35. Qh3 {[%emt 0:07:17]} Qc2+ {[%emt 0:00:18]} 36. Kf3 {[%emt 0:00:31]} Qd3+ {[%emt 0:00:27]} 37. Kf2 {[%emt 0:00:05]} Qd2+ {[%emt 0:00:05]} 38. Kf1 {[%emt 0:00:14]} Qc1+ {[%emt 0:01:14]} 39. Kf2 {[%emt 0:00:09]} Qc2+ {[%emt 0:00:56]} 40. Kf3 {[%emt 0:00:49]} Qc3+ {[%emt 0:00:16]} 41. Kf2 {[%emt 0:30:16]} Qd4+ {[%emt 0:30:13]} 42. Kf3 {[%emt 0:01:18]} Qd3+ {[%emt 0:02:57]} 43. Kf2 {[%emt 0:00:09]} Qd2+ {[%emt 0:00:03]} 44. Kf1 {[%emt 0:01:05]} Qf4+ {[%emt 0:00:00]} 45. Kg1 {[%emt 0:00:00]} Qxe4 {[%emt 0:00:00]} 46. Qc8+ {[%emt 0:00:00]} Kh7 {[%emt 0:00:00]} 47. h3 {[%emt 0:00:00]} Qe3+ {[%emt 0:00:00]} 48. Kh1 {[%emt 0:00:00]} Qc1+ {[%emt 0:00:00]} 49. Kh2 {[%emt 0:00:00]} Qf4+ {[%emt 0:00:00]} 50. Kh1 {[%emt 0:00:00]} Qf7 {[%emt 0:00:00]} 51. Kg1 {[%emt 0:00:00]} g6 {[%emt 0:00:00]} 52. Qd8 {[%emt 0:00:00]} Kg7 {[%emt 0:00:00]} 53. a4 {[%emt 0:00:00]} e4 {[%emt 0:00:00]} 54. Qh4 {[%emt 0:00:00]} Qe8 {[%emt 0:00:00]} 55. Qf4 {[%emt 0:00:00]} Qe7 {[%emt 0:00:00]} 56. Qe3 {[%emt 0:00:00]} Qe5 {[%emt 0:00:00]} 57. Kh1 {[%emt 0:00:00]} g5 {[%emt 0:00:00]} 58. h4 {[%emt 0:02:06]} Kg6 {[%emt 0:00:00]} 59. hxg5 {[%emt 0:00:34]} hxg5 {[%emt 0:00:00]} 60. g3 {[%emt 0:02:40]} Kf5 {[%emt 0:00:01]} 61. Qf2+ {[%emt 0:01:41]} Kg6 {[%emt 0:01:10]} 62. Qe3 {[%emt 0:00:13]} Qa1+ {[%emt 0:01:43]} 63. Kg2 {[%emt 0:00:11]} Qb2+ {[%emt 0:00:07]} 64. Kh3 {[%emt 0:00:21]} Qb1 {[%emt 0:01:18]} 65. Kg2 {[%emt 0:02:14]} Qc2+ {[%emt 0:00:29]} 66. Kh1 {[%emt 0:01:19]} Qxc4 {[%emt 0:01:04]} 67. Qf2 {[%emt 0:00:26]} Qxd5 {[%emt 0:00:40]} 68. Qc2 {[%emt 0:00:33]} Kh6 {[%emt 0:03:30]} 69. Qh2+ {[%emt 0:00:30]} Kg7 {[%emt 0:00:10]} 70. Qb2+ {[%emt 0:00:03]} Kf7 {[%emt 0:01:04]} 71. Qf2+ {[%emt 0:00:56]} Kg6 {[%emt 0:00:14]} 72. Qc2 {[%emt 0:00:10]} Kf5 {[%emt 0:01:07]} 73. Qf2+ {[%emt 0:00:32]} Ke5 {[%emt 0:00:13]} 74. Qf8 {[%emt 0:00:44]} e3+ {[%emt 0:00:10]} 75. Kh2 {[%emt 0:00:07]} Kd4 {[%emt 0:00:11]} 76. Qg7+ {[%emt 0:00:20]} Qe5 {[%emt 0:00:23]} 77. Qxc7 {[%emt 0:00:36]} Qc5 {[%emt 0:00:30]} 78. Qg7+ {[%emt 0:00:12]} Kd3 {[%emt 0:00:06]} 79. Qg6+ {[%emt 0:00:19]} Kd2 {[%emt 0:00:07]} 80. Qb1 {[%emt 0:00:22]} e2 {[%emt 0:00:28]} 81. Qb2+ {[%emt 0:00:05]} Ke3 {[%emt 0:00:07]} 82. Qb3+ {[%emt 0:00:10]} Kd2 {[%emt 0:00:46]} 83. Qb2+ {[%emt 0:00:05]} Qc2 {[%emt 0:01:03]} 84. Qd4+ {[%emt 0:00:03]} Qd3 {[%emt 0:00:29]} 85. Qb2+ {[%emt 0:01:04]} Ke3 {[%emt 0:00:22]} 86. Qc1+ {[%emt 0:00:05]} Qd2 {[%emt 0:00:22]} 87. Qa3+ {[%emt 0:00:27]} Ke4 {[%emt 0:00:48]} 88. Kh3 {[%emt 0:00:44]} e1=Q {[%emt 0:00:44]} 0-1

[Event "Czech Youth U14 Boys 2024"]
[Site "Kouty nad Desnou"]
[Date "2024.03.10"]
[Round "2.7"]
[White "Stary, Vojtech"]
[Black "Gregor, Alexandr"]
[Result "1-0"]
[ECO "E06"]
[WhiteElo "1950"]
[BlackElo "1777"]
[Annotator "RC"]
[PlyCount "63"]
[EventDate "2024.03.10"]
[EventType "swiss"]
[EventCountry "CZE"]
[SourceTitle "playchess.com"]
[Source "ChessBase"]
[SourceQuality "1"]
[TimeControl "40/5400+30:1800+30"]

1. d4 {[%emt 0:00:03]} Nf6 {[%emt 0:00:09]} 2. Nf3 {[%emt 0:00:04]} d5 {[%emt 0:00:59]} 3. c4 {[%emt 0:00:09]} e6 {[%emt 0:01:23]} 4. g3 {[%emt 0:00:19]} Be7 {[%emt 0:04:50]} 5. Bg2 {[%emt 0:00:26]} O-O {[%emt 0:00:17]} 6. O-O {[%emt 0:01:01]} c6 {[%emt 0:03:47]} 7. Nc3 {[%emt 0:01:53]} Nbd7 {[%emt 0:03:10]} 8. b3 {[%emt 0:07:17]} b6 {[%emt 0:12:29]} 9. Bb2 {[%emt 0:01:48]} Ba6 {[%emt 0:13:11]} 10. cxd5 {[%emt 0:02:53]} cxd5 {[%emt 0:00:21]} 11. Rc1 {[%emt 0:00:58]} Rc8 {[%emt 0:04:42]} 12. a3 {[%emt 0:04:45]} Bd6 {[%emt 0:03:52]} 13. Nd2 {[%emt 0:23:54]} Qe7 {[%emt 0:02:45]} 14. Ndb1 {[%emt 0:01:47]} b5 {[%emt 0:06:17]} 15. Qd3 {[%emt 0:03:54]} e5 {[%emt 0:22:33]} 16. Nxd5 {[%emt 0:08:30]} Nxd5 {[%emt 0:00:06]} 17. Bxd5 {[%emt 0:00:25]} Nf6 {[%emt 0:07:52]} 18. dxe5 {[%emt 0:09:26]} Bxe5 {[%emt 0:00:11]} 19. Bxe5 {[%emt 0:00:30]} Qxe5 {[%emt 0:00:05]} 20. Bf3 {[%emt 0:01:51]} Qe6 {[%emt 0:04:17]} 21. b4 {[%emt 0:00:53]} g6 {[%emt 0:02:09]} 22. Rfd1 {[%emt 0:01:14]} Rxc1 {[%emt 0:05:27]} 23. Rxc1 {[%emt 0:00:08]} Rc8 {[%emt 0:00:12]} 24. Rxc8+ {[%emt 0:00:37]} Qxc8 {[%emt 0:00:05]} 25. Qc3 {[%emt 0:00:10]} Qf5 {[%emt 0:01:06]} 26. Nd2 {[%emt 0:01:19]} Bc8 {[%emt 0:00:35]} 27. Nb3 {[%emt 0:04:22]} Be6 {[%emt 0:00:36]} 28. Nc5 {[%emt 0:01:22]} Kg7 {[%emt 0:00:30]} 29. Ne4 {[%emt 0:02:09]} Bc4 {[%emt 0:00:30]} 30. Nd6 {[%emt 0:01:54]} Qb1+ {[%emt 0:00:18]} 31. Kg2 {[%emt 0:00:04]} Be6 {[%emt 0:00:45]} 32. Ne8+ {[%emt 0:00:30]} 1-0

[Event "Czech Youth U14 Boys 2024"]
[Site "Kouty nad Desnou"]
[Date "2024.03.10"]
[Round "2.8"]
[White "Jezek, Jakub"]
[Black "Komarek, Tobias"]
[Result "0-1"]
[ECO "E07"]
[WhiteElo "1854"]
[BlackElo "1822"]
[Annotator "NA RC"]
[PlyCount "168"]
[EventDate "2024.03.10"]
[EventType "swiss"]
[EventCountry "CZE"]
[SourceTitle "playchess.com"]
[Source "ChessBase"]
[SourceQuality "1"]
[TimeControl "40/5400+30:1800+30"]

1. d4 {[%emt 0:00:12]} Nf6 {[%emt 0:00:05]} 2. c4 {[%emt 0:00:03]} e6 {[%emt 0:00:08]} 3. Nf3 {[%emt 0:00:17]} d5 {[%emt 0:00:10]} 4. g3 {[%emt 0:01:48]} Be7 {[%emt 0:00:15]} 5. Bg2 {[%emt 0:00:04]} O-O {[%emt 0:00:11]} 6. O-O {[%emt 0:00:02]} Nbd7 {[%emt 0:02:07]} 7. Nc3 {[%emt 0:00:14]} dxc4 {[%emt 0:00:56]} 8. a4 {[%emt 0:06:47]} Nd5 {[%emt 0:05:04]} 9. Nd2 {[%emt 0:02:00]} Nxc3 {[%emt 0:07:05]} 10. bxc3 {[%emt 0:02:09]} Nb6 {[%emt 0:14:16]} 11. a5 {[%emt 0:01:16]} Nd5 {[%emt 0:00:43]} 12. Qc2 {[%emt 0:02:42]} c5 {[%emt 0:13:40]} 13. e4 {[%emt 0:14:25]} Nc7 {[%emt 0:07:03]} 14. Bb2 {[%emt 0:03:26]} Nb5 {[%emt 0:06:14]} 15. Qa4 {[%emt 0:04:06]} Bd7 {[%emt 0:07:52]} 16. Qxc4 {[%emt 0:00:56]} cxd4 {[%emt 0:02:56]} 17. cxd4 {[%emt 0:00:20]} Rc8 {[%emt 0:06:47]} 18. Qb3 {[%emt 0:03:46]} Bc6 {[%emt 0:01:41]} 19. d5 {[%emt 0:03:27]} exd5 {[%emt 0:00:20]} 20. exd5 {[%emt 0:00:04]} Bd7 {[%emt 0:00:30]} 21. Ne4 {[%emt 0:14:08]} Nd6 {[%emt 0:02:09]} 22. Bd4 {[%emt 0:08:32]} Nb5 {[%emt 0:08:32]} 23. Be5 {[%emt 0:01:33]} Bc5 {[%emt 0:04:46]} 24. Nxc5 {[%emt 0:14:36]} Rxc5 {[%emt 0:00:08]} 25. Qb2 {[%emt 0:05:30]} f6 {[%emt 0:02:56]} 26. Bf4 {[%emt 0:00:08]} a6 {[%emt 0:00:50]} 27. Be3 {[%emt 0:01:29]} Rc8 {[%emt 0:00:47]} 28. Bb6 {[%emt 0:00:58]} Qe7 {[%emt 0:00:49]} 29. Rfe1 {[%emt 0:00:46]} Qd6 {[%emt 0:00:16]} 30. Rac1 {[%emt 0:02:41]} Rxc1 {[%emt 0:01:05]} 31. Qxc1 {[%emt 0:00:08]} Rc8 {[%emt 0:00:39]} 32. Qd2 {[%emt 0:01:26]} Re8 {[%emt 0:01:58]} 33. Rc1 {[%emt 0:01:24]} Qe5 {[%emt 0:00:57]} 34. d6 {[%emt 0:01:46]} Qxd6 {[%emt 0:01:10]} 35. Qxd6 {[%emt 0:00:17]} Nxd6 {[%emt 0:00:04]} 36. Rd1 {[%emt 0:01:00]} Bf5 {[%emt 0:00:09]} 37. Bd5+ {[%emt 0:03:00]} Be6 {[%emt 0:02:01]} 38. Bxe6+ {[%emt 0:00:01]} Rxe6 {[%emt 0:00:10]} 39. Rc1 {[%emt 0:01:27]} Nb5 {[%emt 0:00:32]} 40. Rc8+ {[%emt 0:00:32]} Kf7 {[%emt 0:00:05]} 41. Kg2 {[%emt 0:02:20]} Re8 {[%emt 0:00:48]} 42. Rc2 {[%emt 0:00:58]} Re7 {[%emt 0:00:41]} 43. Rd2 {[%emt 0:00:59]} Kg6 {[%emt 0:03:29]} 44. h4 {[%emt 0:01:07]} Kf7 {[%emt 0:01:13]} 45. Bc5 {[%emt 0:01:53]} Re5 {[%emt 0:00:46]} 46. Bb6 {[%emt 0:01:00]} Ke7 {[%emt 0:02:13]} 47. Kf3 {[%emt 0:01:11]} Nd6 {[%emt 0:03:20]} 48. Rc2 {[%emt 0:03:13]} Nb5 {[%emt 0:00:49]} 49. Rc8 {[%emt 0:04:11]} Kf7 {[%emt 0:04:22]} 50. Rd8 {[%emt 0:01:19]} Re7 {[%emt 0:00:31]} 51. Rd1 {[%emt 0:03:32]} Ke6 {[%emt 0:02:39]} 52. g4 {[%emt 0:05:19]} Kf7 {[%emt 0:02:19]} 53. Rd8 {[%emt 0:02:54]} g6 {[%emt 0:05:50]} 54. Rd1 {[%emt 0:00:55]} Ke6 {[%emt 0:02:51]} 55. Rd8 {[%emt 0:01:45]} Nd6 {[%emt 0:01:44]} 56. Bc5 {[%emt 0:02:17]} Rd7 {[%emt 0:00:17]} 57. Rf8 {[%emt 0:01:11]} Nf7 {[%emt 0:02:15]} 58. Ke4 {[%emt 0:02:35]} Rd8 {[%emt 0:00:31]} 59. Rxd8 {[%emt 0:00:24]} Nxd8 {[%emt 0:00:07]} 60. Bd4 {[%emt 0:01:15]} Nc6 {[%emt 0:00:10]} 61. Bc3 {[%emt 0:00:13]} Na7 {[%emt 0:01:02]} 62. f4 {[%emt 0:00:40]} f5+ {[%emt 0:00:33]} 63. Kf3 {[%emt 0:00:21]} Nb5 {[%emt 0:00:09]} 64. Bb2 {[%emt 0:00:41]} h5 {[%emt 0:00:33]} 65. gxh5 {[%emt 0:00:22]} gxh5 {[%emt 0:00:04]} 66. Ke3 {[%emt 0:00:35]} Kd5 {[%emt 0:00:05]} 67. Kd3 {[%emt 0:00:23]} Na7 {[%emt 0:00:38]} 68. Bd4 {[%emt 0:00:44]} Nc6 {[%emt 0:00:05]} 69. Bb6 {[%emt 0:00:04]} Ne7 {[%emt 0:00:27]} 70. Bf2 {[%emt 0:00:41]} Ng6 {[%emt 0:00:26]} 71. Bg3 {[%emt 0:00:05]} Kc5 {[%emt 0:00:07]} 72. Ke3 {[%emt 0:00:45]} Ne7 {[%emt 0:00:26]} 73. Be1 {[%emt 0:00:24]} Nc6 {[%emt 0:00:05]} 74. Kd3 {[%emt 0:00:33]} Kb5 {[%emt 0:00:11]} 75. Ke3 {[%emt 0:00:22]} Kc4 {[%emt 0:02:00]} 76. Bd2 {[%emt 0:00:38]} Nb4 {[%emt 0:00:28]} 77. Bc1 {[%emt 0:00:09]} Nd5+ {[%emt 0:00:57]} 78. Kf3 {[%emt 0:00:40]} Kd3 {[%emt 0:00:10]} 79. Ba3 {[%emt 0:00:23]} Ne3 {[%emt 0:01:24]} 80. Be7 {[%emt 0:00:23]} Nc4 {[%emt 0:00:23]} 81. Bd8 {[%emt 0:00:02]} Kc3 {[%emt 0:00:26]} 82. Ke2 {[%emt 0:00:12]} Kb4 {[%emt 0:00:05]} 83. Kd3 {[%emt 0:00:05]} Nxa5 {[%emt 0:00:06]} 84. Be7+ {[%emt 0:00:55]} Kb5 {[%emt 0:00:07]} 0-1

[Event "Czech Youth U14 Boys 2024"]
[Site "Kouty nad Desnou"]
[Date "2024.03.10"]
[Round "2.9"]
[White "Kutil, Adam"]
[Black "Pogorelskiy, Boris"]
[Result "1-0"]
[ECO "B00"]
[WhiteElo "1820"]
[BlackElo "1747"]
[Annotator "NA RC"]
[PlyCount "39"]
[EventDate "2024.03.10"]
[EventType "swiss"]
[EventCountry "CZE"]
[SourceTitle "playchess.com"]
[Source "ChessBase"]
[SourceQuality "1"]
[TimeControl "40/5400+30:1800+30"]

1. e4 {[%emt 0:00:11]} d6 {[%emt 0:00:38]} 2. d4 {[%emt 0:01:34]} Nf6 {[%emt 0:00:06]} 3. Bd3 {[%emt 0:00:43]} Nbd7 {[%emt 0:01:04]} 4. Ne2 {[%emt 0:00:49]} e5 {[%emt 0:00:42]} 5. c3 {[%emt 0:00:15]} Be7 {[%emt 0:00:36]} 6. O-O {[%emt 0:02:27]} O-O {[%emt 0:01:51]} 7. f4 {[%emt 0:00:29]} exf4 {[%emt 0:01:45]} 8. Bxf4 {[%emt 0:01:53]} Re8 {[%emt 0:00:14]} 9. Nd2 {[%emt 0:00:40]} Nh5 {[%emt 0:04:39]} 10. Be3 {[%emt 0:08:06]} Bg5 {[%emt 0:04:23]} 11. Bf2 {[%emt 0:03:48]} Nf4 {[%emt 0:02:03]} 12. Nxf4 {[%emt 0:01:38]} Bxf4 {[%emt 0:00:08]} 13. Nf3 {[%emt 0:01:15]} Nf6 {[%emt 0:01:57]} 14. Bh4 {[%emt 0:05:02]} Bg4 {[%emt 0:01:14]} 15. Qc2 {[%emt 0:05:00]} h6 {[%emt 0:09:45]} 16. Rae1 {[%emt 0:18:58]} Bxf3 {[%emt 0:04:58]} 17. Bxf6 {[%emt 0:03:23]} Qxf6 {[%emt 0:02:00]} 18. Rxf3 {[%emt 0:00:32]} Bxh2+ {[%emt 0:00:49]} 19. Kf1 {[%emt 0:09:12]} Qh4 {[%emt 0:04:35]} 20. Qf2 {[%emt 0:00:38]} 1-0